[Event "Malawi Championship (W)"]
[Site "followchess.com"]
[Date "2022.04.17"]
[Round "7"]
[White "Jambo, Linda"]
[Black "Banda Tapiwa"]
[Result "1-0"]
[WhiteElo "1450"]
[BlackElo "1114"]
[ECO "C41"]
[WhiteFed "MAW"]
[BlackFed "MAW"]
[FCGameId "324653686"]
[WhiteFideId "16400054"]
[BlackFideId "20505230"]
[TimeControl "5400+00"]

1. e4 {[%clk 1:29:53]} e5 {[%clk 1:29:55]} 2. Nf3 {[%clk 1:29:49]} d6 
{[%clk 1:29:37]} 3. Be2 {[%clk 1:29:17]} Nf6 {[%clk 1:29:28]} 4. Nc3 
{[%clk 1:29:07]} Be7 {[%clk 1:29:16]} 5. O-O {[%clk 1:28:57]} O-O 
{[%clk 1:29:10]} 6. h3 {[%clk 1:28:55]} Nbd7 {[%clk 1:28:50]} 7. Re1 
{[%clk 1:28:17]} Nc5 {[%clk 1:28:35]} 8. Bc4 {[%clk 1:27:02]} h6 
{[%clk 1:28:17]} 9. d4 {[%clk 1:21:30]} Ncd7 {[%clk 1:28:11]} 10. dxe5 
{[%clk 1:20:03]} Nxe5 {[%clk 1:28:02]} 11. Nxe5 {[%clk 1:18:52]} dxe5 
{[%clk 1:27:57]} 12. Qxd8 {[%clk 1:16:34]} Bxd8 {[%clk 1:27:52]} 13. b3 
{[%clk 1:15:22]} c6 {[%clk 1:27:43]} 14. a4 {[%clk 1:14:49]} a5 {[%clk 1:27:21]} 
15. Bb2 {[%clk 1:13:42]} Bc7 {[%clk 1:26:58]} 16. Rad1 {[%clk 1:11:11]} b6 
{[%clk 1:26:52]} 17. Ba3 {[%clk 1:07:36]} Re8 {[%clk 1:26:01]} 18. Bd6 
{[%clk 1:05:31]} Bb8 {[%clk 1:25:17]} 19. Bxb8 {[%clk 1:04:23]} Rxb8 
{[%clk 1:25:12]} 20. Rd6 {[%clk 1:03:23]} Bb7 {[%clk 1:24:32]} 21. Red1 
{[%clk 1:03:10]} Re7 {[%clk 1:22:19]} 22. Rd8+ Rxd8 {[%clk 1:22:14]} 23. Rxd8+ 
Kh7 {[%clk 1:22:09]} 24. f3 {[%clk 1:00:04]} Nh5 {[%clk 1:21:50]} 25. Ne2 
{[%clk 0:56:34]} Nf4 {[%clk 1:20:50]} 26. Nxf4 {[%clk 0:55:37]} exf4 
{[%clk 1:20:44]} 27. Rd6 {[%clk 0:52:21]} Rc7 {[%clk 1:17:42]} 28. e5 
{[%clk 0:49:47]} Bc8 {[%clk 1:17:35]} 29. Bd3+ g6 {[%clk 1:17:34]} 30. Rf6 
{[%clk 0:45:31]} Kg7 {[%clk 1:17:30]} 31. Rxf4 {[%clk 0:44:57]} Re7 
{[%clk 1:17:27]} 32. Rf6 {[%clk 0:43:04]} Re6 {[%clk 1:16:46]} 33. Be4 
{[%clk 0:38:22]} Bd7 {[%clk 1:15:49]} 34. Rxe6 {[%clk 0:38:03]} fxe6 
{[%clk 1:15:43]} 35. f4 {[%clk 0:37:40]} b5 {[%clk 1:15:16]} 36. axb5 
{[%clk 0:36:57]} cxb5 {[%clk 1:15:11]} 37. Kf2 {[%clk 0:33:31]} a4 
{[%clk 1:15:07]} 38. bxa4 {[%clk 0:33:24]} bxa4 {[%clk 1:15:02]} 39. c4 
{[%clk 0:33:19]} a3 {[%clk 1:14:49]} 40. Bb1 {[%clk 0:33:06]} g5 
{[%clk 1:14:34]} 41. g3 {[%clk 0:32:46]} Ba4 {[%clk 1:13:50]} 42. c5 
{[%clk 0:31:09]} Bb3 {[%clk 1:13:31]} 43. c6 {[%clk 0:30:20]} Bd5 
{[%clk 1:13:26]} 44. c7 {[%clk 0:29:04]} Bb7 {[%clk 1:13:23]} 45. Ba2 
{[%clk 0:28:17]} Kf7 {[%clk 1:13:21]} 46. f5 {[%clk 0:27:45]} Ke7 
{[%clk 1:13:12]} 47. Bxe6 {[%clk 0:26:48]} h5 {[%clk 1:12:40]} 48. Ba2 
{[%clk 0:26:15]} Bc8 {[%clk 1:12:11]} 49. f6+ Kf8 {[%clk 1:12:02]} 50. e6 
{[%clk 0:23:57]} Ke8 {[%clk 1:11:34]} 51. Ke3 {[%clk 0:22:08]} g4 
{[%clk 1:10:44]} 52. hxg4 {[%clk 0:21:33]} hxg4 {[%clk 1:10:38]} 53. Kf4 
{[%clk 0:21:16]} 1-0

[Event "Malawi Championship (W)"]
[Site "followchess.com"]
[Date "2022.04.17"]
[Round "7"]
[White "Msukwa, Tupokiwe"]
[Black "Kumwenda Tina"]
[Result "1-0"]
[WhiteElo "1371"]
[BlackElo "1195"]
[ECO "D20"]
[WhiteFed "MAW"]
[BlackFed "MAW"]
[FCGameId "-192112349"]
[WhiteFideId "20500459"]
[BlackFideId "20502338"]
[TimeControl "5400+00"]

1. d4 {[%clk 1:29:02]} d5 {[%clk 1:29:44]} 2. c4 {[%clk 1:28:58]} dxc4 
{[%clk 1:28:10]} 3. e4 {[%clk 1:28:40]} Nc6 4. Be3 {[%clk 1:28:08]} e5 
{[%clk 1:26:48]} 5. d5 {[%clk 1:27:33]} Bb4+ {[%clk 1:26:08]} 6. Nc3 
{[%clk 1:26:54]} Bxc3+ {[%clk 1:24:07]} 7. bxc3 {[%clk 1:26:50]} Nce7 
{[%clk 1:22:07]} 8. Bxc4 {[%clk 1:26:37]} a6 {[%clk 1:20:20]} 9. Bd3 
{[%clk 1:25:44]} Nf6 {[%clk 1:18:47]} 10. h3 {[%clk 1:25:20]} h6 
{[%clk 1:18:24]} 11. Nf3 {[%clk 1:22:30]} Qd6 {[%clk 1:16:48]} 12. c4 
{[%clk 1:19:59]} c6 {[%clk 1:15:29]} 13. c5 {[%clk 1:18:55]} Qc7 
{[%clk 1:14:11]} 14. d6 {[%clk 1:18:23]} Qa5+ 15. Bd2 {[%clk 1:17:09]} Qxc5 
{[%clk 1:13:44]} 16. dxe7 {[%clk 1:17:01]} Qxe7 {[%clk 1:13:39]} 17. O-O O-O 18. 
Qc2 {[%clk 1:12:43]} Nd7 {[%clk 1:05:57]} 19. Rfd1 {[%clk 1:10:37]} Kh8 
{[%clk 1:03:35]} 20. Rab1 {[%clk 1:10:00]} f6 {[%clk 1:03:10]} 21. Be3 
{[%clk 1:06:17]} Rd8 {[%clk 1:00:39]} 22. Rd2 {[%clk 1:05:39]} Nf8 
{[%clk 1:00:19]} 23. Rbd1 {[%clk 1:02:37]} Be6 {[%clk 0:59:37]} 24. Bc5 
{[%clk 1:01:25]} Qd7 {[%clk 0:59:00]} 25. Bc4 {[%clk 0:59:17]} Qf7 
{[%clk 0:58:30]} 26. Rxd8 {[%clk 0:58:33]} Rxd8 {[%clk 0:58:11]} 27. Rxd8 
{[%clk 0:58:27]} Bxc4 {[%clk 0:57:53]} 28. Rxf8+ Qxf8 {[%clk 0:57:35]} 29. Bxf8 
{[%clk 0:58:15]} Kg8 {[%clk 0:56:52]} 30. Qxc4+ Kxf8 {[%clk 0:56:50]} 31. Qc5+ 
Ke8 {[%clk 0:56:40]} 32. Qb6 {[%clk 0:57:27]} 1-0

[Event "Malawi Championship (W)"]
[Site "followchess.com"]
[Date "2022.04.17"]
[Round "7"]
[White "Tadeyo Charity"]
[Black "Msiska, Royce"]
[Result "1-0"]
[WhiteElo "1096"]
[BlackElo "1271"]
[ECO "C44"]
[WhiteFed "MAW"]
[BlackFed "MAW"]
[FCGameId "664029692"]
[WhiteFideId "20506988"]
[BlackFideId "16400194"]
[TimeControl "5400+00"]

1. e4 {[%clk 1:29:58]} e5 {[%clk 1:29:53]} 2. c4 {[%clk 1:29:52]} Nc6 
{[%clk 1:29:41]} 3. Nf3 {[%clk 1:29:29]} Bc5 {[%clk 1:29:23]} 4. d3 
{[%clk 1:29:04]} Nf6 {[%clk 1:29:08]} 5. h3 {[%clk 1:28:46]} O-O 
{[%clk 1:28:51]} 6. Be2 {[%clk 1:28:37]} h6 {[%clk 1:27:59]} 7. Nc3 
{[%clk 1:28:31]} d6 {[%clk 1:26:29]} 8. Na4 {[%clk 1:28:24]} b6 {[%clk 1:24:25]} 
9. a3 {[%clk 1:28:00]} Bd4 {[%clk 1:23:20]} 10. O-O {[%clk 1:27:12]} Ba6 
{[%clk 1:22:23]} 11. Nxd4 {[%clk 1:26:30]} Nxd4 {[%clk 1:21:55]} 12. Nc3 
{[%clk 1:25:49]} c6 {[%clk 1:20:23]} 13. b4 {[%clk 1:25:35]} b5 {[%clk 1:18:22]} 
14. cxb5 {[%clk 1:24:44]} cxb5 {[%clk 1:18:04]} 15. Be3 {[%clk 1:24:22]} Qb6 
{[%clk 1:14:18]} 16. Rc1 {[%clk 1:22:46]} Bb7 {[%clk 1:12:03]} 17. Bf3 
{[%clk 1:22:03]} a6 {[%clk 1:10:13]} 18. Ne2 {[%clk 1:20:41]} Rad8 
{[%clk 1:07:24]} 19. Nxd4 {[%clk 1:20:05]} exd4 {[%clk 1:07:08]} 20. Bd2 
{[%clk 1:19:59]} Rfe8 {[%clk 1:03:15]} 21. Bf4 {[%clk 1:19:29]} d5 
{[%clk 0:58:44]} 22. Bc7 {[%clk 1:18:35]} Qe6 {[%clk 0:56:26]} 23. Bxd8 
{[%clk 1:17:24]} Rxd8 {[%clk 0:55:43]} 24. Re1 {[%clk 1:17:11]} dxe4 
{[%clk 0:52:38]} 25. dxe4 {[%clk 1:16:09]} Bxe4 {[%clk 0:50:41]} 26. Bxe4 
{[%clk 1:15:40]} Nxe4 {[%clk 0:50:11]} 27. f3 {[%clk 1:14:37]} Qb6 
{[%clk 0:48:22]} 28. Rxe4 {[%clk 1:14:13]} d3+ 29. Kh1 {[%clk 1:13:45]} d2 
{[%clk 0:47:51]} 30. Rc2 {[%clk 1:13:19]} Qf2 {[%clk 0:46:40]} 31. Re2 
{[%clk 1:09:26]} Qxe2 {[%clk 0:46:16]} 32. Qxe2 {[%clk 1:09:06]} d1=Q+ 33. Qxd1 
Rxd1+ 34. Kh2 {[%clk 1:09:02]} Ra1 {[%clk 0:44:49]} 35. Rc3 {[%clk 1:08:55]} g6 
{[%clk 0:43:37]} 36. Kg3 {[%clk 1:08:38]} Rd1 {[%clk 0:43:11]} 37. h4 
{[%clk 1:08:18]} h5 38. Rc6 {[%clk 1:07:56]} Rd7 {[%clk 0:40:49]} 39. Rxa6 
{[%clk 1:07:42]} Rb7 {[%clk 0:40:29]} 40. Rc6 {[%clk 1:07:34]} Kg7 
{[%clk 0:40:08]} 41. Kf4 {[%clk 1:07:32]} Ra7 {[%clk 0:37:42]} 42. Rb6 
{[%clk 1:07:08]} Rxa3 {[%clk 0:36:57]} 43. Rxb5 {[%clk 1:07:06]} Rc3 
{[%clk 0:36:05]} 44. Rc5 {[%clk 1:06:48]} Rxc5 {[%clk 0:33:29]} 45. bxc5 
{[%clk 1:06:34]} Kf8 {[%clk 0:33:26]} 46. Ke5 {[%clk 1:06:33]} Ke8 
{[%clk 0:33:25]} 47. Kd6 {[%clk 1:06:32]} Kd8 {[%clk 0:33:20]} 48. Kc6 
{[%clk 1:06:26]} Kc8 {[%clk 0:33:18]} 49. Kd6 {[%clk 1:06:23]} Kd8 
{[%clk 0:33:16]} 50. c6 {[%clk 1:06:22]} Kc8 {[%clk 0:33:15]} 51. c7 
{[%clk 1:06:05]} f5 {[%clk 0:33:06]} 52. f4 {[%clk 1:05:46]} {-error} 1-0

[Event "Malawi Championship (W)"]
[Site "followchess.com"]
[Date "2022.04.17"]
[Round "6"]
[White "Mpinganjira, Ellen"]
[Black "Shriyan santosh Priyasha"]
[Result "0-1"]
[WhiteElo "1360"]
[BlackElo "1583"]
[ECO "B06"]
[WhiteFed "MAW"]
[BlackFed "MAW"]
[FCGameId "1091811737"]
[WhiteFideId "16400100"]
[BlackFideId "20505353"]
[TimeControl "5400+00"]

1. e4 {[%clk 1:29:55]} g6 {[%clk 1:29:51]} 2. Nf3 {[%clk 1:29:46]} Bg7 
{[%clk 1:29:38]} 3. Bc4 {[%clk 1:29:25]} d6 {[%clk 1:29:10]} 4. h3 
{[%clk 1:29:14]} Nf6 {[%clk 1:28:51]} 5. d3 {[%clk 1:29:01]} O-O 
{[%clk 1:28:07]} 6. O-O {[%clk 1:28:27]} c5 {[%clk 1:26:46]} 7. c3 
{[%clk 1:26:58]} a6 {[%clk 1:26:13]} 8. Nbd2 {[%clk 1:25:57]} b5 
{[%clk 1:25:43]} 9. Bb3 {[%clk 1:25:01]} Bb7 {[%clk 1:24:56]} 10. Re1 
{[%clk 1:23:01]} Nc6 {[%clk 1:22:06]} 11. a3 {[%clk 1:21:17]} Nd7 
{[%clk 1:18:03]} 12. Ba2 {[%clk 1:20:50]} Nb6 13. Nf1 {[%clk 1:19:40]} d5 
{[%clk 1:04:42]} 14. exd5 {[%clk 1:14:25]} Nxd5 {[%clk 1:03:55]} 15. Bd2 
{[%clk 1:10:19]} Qd6 {[%clk 0:57:04]} 16. Qc1 {[%clk 1:09:23]} Nf6 17. Bh6 
{[%clk 1:07:11]} Qxd3 {[%clk 0:52:58]} 18. Bxg7 {[%clk 1:04:25]} Kxg7 
{[%clk 0:51:37]} 0-1

[Event "Malawi Championship (W)"]
[Site "followchess.com"]
[Date "2022.04.17"]
[Round "6"]
[White "Banda Tapiwa"]
[Black "Kapalamula Martha"]
[Result "0-1"]
[WhiteElo "1114"]
[BlackElo "1155"]
[ECO "C50"]
[WhiteFed "MAW"]
[BlackFed "MAW"]
[FCGameId "-2120737649"]
[WhiteFideId "20505230"]
[BlackFideId "20505116"]
[TimeControl "5400+00"]

1. e4 {[%clk 1:29:58]} e5 {[%clk 1:29:37]} 2. Nf3 {[%clk 1:29:57]} Nc6 
{[%clk 1:29:12]} 3. Bc4 {[%clk 1:29:51]} f5 {[%clk 1:28:01]} 4. d3 
{[%clk 1:29:33]} Nf6 {[%clk 1:26:14]} 5. Ng5 {[%clk 1:29:25]} d5 
{[%clk 1:24:13]} 6. exd5 {[%clk 1:29:19]} Na5 {[%clk 1:23:41]} 7. Bb5+ 
{[%clk 1:29:02]} c6 {[%clk 1:20:37]} 8. dxc6 {[%clk 1:25:47]} bxc6 
{[%clk 1:20:00]} 9. Ba4 {[%clk 1:25:34]} h6 {[%clk 1:19:21]} 10. Nf3 
{[%clk 1:25:20]} Bd6 {[%clk 1:18:04]} 11. O-O {[%clk 1:25:02]} O-O 
{[%clk 1:15:43]} 12. Bd2 {[%clk 1:24:45]} Bb7 {[%clk 1:12:01]} 13. b4 
{[%clk 1:24:39]} e4 {[%clk 1:09:50]} 14. dxe4 {[%clk 1:24:16]} fxe4 
{[%clk 1:04:22]} 15. bxa5 {[%clk 1:23:58]} exf3 {[%clk 1:03:48]} 16. Qxf3 
{[%clk 1:23:35]} Nd5 {[%clk 1:01:45]} 17. Qd3 {[%clk 1:22:38]} Qh4 
{[%clk 1:00:01]} 18. Qh3 {[%clk 1:19:03]} Qxh3 {[%clk 0:57:10]} 19. gxh3 
{[%clk 1:18:57]} Nf4 {[%clk 0:56:30]} 20. Bxf4 {[%clk 1:17:41]} Rxf4 
{[%clk 0:55:37]} 21. Bb3+ Kh8 {[%clk 0:55:16]} 22. Be6 {[%clk 1:17:00]} Rf6 23. 
Bg4 Rg6 24. f3 h5 25. Nd2 hxg4 26. hxg4 Bc5+ 27. Kg2 {[%clk 1:16:46]} Bd4 
{[%clk 0:51:14]} 28. Rad1 {[%clk 1:16:39]} c5 {[%clk 0:50:39]} 29. Nb3 
{[%clk 1:16:22]} Rxg4+ 30. Kh3 {[%clk 1:15:48]} Rf4 {[%clk 0:49:16]} 31. Nxd4 
{[%clk 1:15:43]} cxd4 {[%clk 0:49:10]} 32. Kg3 {[%clk 1:15:34]} Raf8 
{[%clk 0:48:44]} 33. Rd3 {[%clk 1:15:20]} Ba6 {[%clk 0:48:27]} 34. a4 
{[%clk 1:14:08]} Bxd3 {[%clk 0:47:58]} 35. cxd3 {[%clk 1:14:05]} g6 
{[%clk 0:47:35]} 36. Rf2 {[%clk 1:13:29]} Kh7 {[%clk 0:47:23]} 37. Rf1 
{[%clk 1:13:24]} Kh6 {[%clk 0:47:20]} 38. Rf2 {[%clk 1:13:17]} Kh5 
{[%clk 0:46:51]} 39. Rf1 {[%clk 1:13:13]} g5 {[%clk 0:46:21]} 40. h3 
{[%clk 1:13:09]} R8f5 {[%clk 0:45:48]} 41. a6 {[%clk 1:12:31]} Ra5 
{[%clk 0:44:41]} 42. Ra1 {[%clk 1:12:22]} Rxa6 {[%clk 0:44:24]} 43. a5 
{[%clk 1:11:52]} Raf6 {[%clk 0:44:20]} 44. Rf1 {[%clk 1:11:48]} a6 
{[%clk 0:44:12]} 45. Rf2 {[%clk 1:11:43]} R6f5 {[%clk 0:44:09]} 46. Rf1 
{[%clk 1:11:25]} Rxa5 {[%clk 0:44:04]} 47. Rf2 {[%clk 1:11:13]} Raf5 
{[%clk 0:43:49]} 0-1

[Event "Malawi Championship (W)"]
[Site "followchess.com"]
[Date "2022.04.17"]
[Round "6"]
[White "Tadeyo Charity"]
[Black "Msukwa, Tupokiwe"]
[Result "1/2-1/2"]
[WhiteElo "1096"]
[BlackElo "1371"]
[ECO "B20"]
[WhiteFed "MAW"]
[BlackFed "MAW"]
[FCGameId "52107455"]
[WhiteFideId "20506988"]
[BlackFideId "20500459"]
[TimeControl "5400+00"]

1. e4 {[%clk 1:29:54]} c5 {[%clk 1:26:17]} 2. c4 {[%clk 1:29:48]} e6 
{[%clk 1:24:47]} 3. Nc3 {[%clk 1:29:24]} Nc6 {[%clk 1:24:18]} 4. d3 
{[%clk 1:29:15]} Be7 {[%clk 1:23:53]} 5. Nf3 {[%clk 1:29:04]} d6 
{[%clk 1:22:53]} 6. Bd2 {[%clk 1:28:41]} Nf6 {[%clk 1:21:59]} 7. Be2 
{[%clk 1:28:06]} a6 {[%clk 1:21:50]} 8. h3 {[%clk 1:27:41]} O-O {[%clk 1:20:35]} 
9. a3 {[%clk 1:27:35]} b6 {[%clk 1:20:23]} 10. O-O {[%clk 1:27:15]} Bb7 
{[%clk 1:20:20]} 11. b3 {[%clk 1:26:38]} Qd7 {[%clk 1:19:52]} 12. Bf4 
{[%clk 1:26:11]} Nd4 {[%clk 1:18:00]} 13. Nxd4 {[%clk 1:24:01]} cxd4 
{[%clk 1:17:45]} 14. Na4 {[%clk 1:22:29]} Qc7 {[%clk 1:15:13]} 15. Qc1 
{[%clk 1:20:31]} e5 {[%clk 1:13:55]} 16. Bg3 {[%clk 1:19:38]} Rac8 
{[%clk 1:09:20]} 17. Qd2 {[%clk 1:14:08]} b5 {[%clk 1:08:55]} 18. Nb2 
{[%clk 1:13:13]} Nd7 {[%clk 1:06:26]} 19. Rac1 {[%clk 1:12:44]} Qd8 
{[%clk 1:05:14]} 20. cxb5 {[%clk 1:11:50]} Rxc1 {[%clk 1:03:10]} 21. Qxc1 
{[%clk 1:11:23]} axb5 {[%clk 1:02:51]} 22. b4 {[%clk 1:10:10]} Bg5 
{[%clk 0:59:41]} 23. f4 {[%clk 1:08:46]} Bh6 {[%clk 0:57:49]} 24. Qc2 
{[%clk 1:08:04]} Qb8 {[%clk 0:52:47]} 25. Bg4 {[%clk 1:06:02]} Nf6 
{[%clk 0:51:49]} 26. Be2 {[%clk 1:03:53]} 1/2-1/2

[Event "Malawi Championship (W)"]
[Site "followchess.com"]
[Date "2022.04.16"]
[Round "5"]
[White "Shriyan santosh Priyasha"]
[Black "Banda Tapiwa"]
[Result "0-1"]
[WhiteElo "1583"]
[BlackElo "1114"]
[ECO "A20"]
[WhiteFed "MAW"]
[BlackFed "MAW"]
[FCGameId "1798513801"]
[WhiteFideId "20505353"]
[BlackFideId "20505230"]
[TimeControl "5400+00"]

1. c4 {[%clk 1:29:55]} e5 {[%clk 1:29:07]} 2. g3 {[%clk 1:29:46]} c5 
{[%clk 1:28:36]} 3. Bg2 {[%clk 1:29:19]} Nc6 {[%clk 1:28:32]} 4. Nc3 
{[%clk 1:27:51]} Nf6 {[%clk 1:27:51]} 5. Nf3 {[%clk 1:27:10]} d6 
{[%clk 1:27:45]} 6. O-O {[%clk 1:26:55]} Be7 {[%clk 1:27:39]} 7. d3 
{[%clk 1:25:44]} O-O {[%clk 1:27:21]} 8. h3 {[%clk 1:24:24]} Rb8 
{[%clk 1:25:45]} 9. e3 {[%clk 1:23:32]} a6 {[%clk 1:25:22]} 10. a4 
{[%clk 1:21:09]} b6 {[%clk 1:22:46]} 11. d4 {[%clk 1:19:40]} Bb7 
{[%clk 1:21:04]} 12. d5 {[%clk 1:16:00]} Na7 13. e4 Re8 {[%clk 1:17:58]} 14. Nh4 
{[%clk 1:15:18]} g6 {[%clk 1:17:37]} 15. Nf3 {[%clk 1:09:54]} Bc8 
{[%clk 1:14:29]} 16. Nh2 {[%clk 1:08:52]} Bd7 {[%clk 1:12:34]} 17. f4 
{[%clk 1:07:08]} exf4 {[%clk 1:10:50]} 18. Bxf4 {[%clk 1:05:46]} Nh5 
{[%clk 1:10:25]} 19. Qf3 {[%clk 1:01:33]} Nxf4 {[%clk 1:09:29]} 20. gxf4 
{[%clk 1:00:04]} f5 {[%clk 1:07:15]} 21. e5 {[%clk 0:56:22]} Qc7 
{[%clk 1:04:36]} 22. Rae1 {[%clk 0:54:18]} b5 {[%clk 1:04:00]} 23. e6 
{[%clk 0:52:43]} Bc8 {[%clk 1:03:51]} 24. axb5 {[%clk 0:51:05]} axb5 
{[%clk 1:03:42]} 25. cxb5 {[%clk 0:48:43]} Nxb5 {[%clk 1:03:32]} 26. Ne2 
{[%clk 0:43:03]} Ba6 {[%clk 1:02:35]} 27. Rc1 {[%clk 0:36:42]} Qb6 
{[%clk 1:02:16]} 28. Rfd1 {[%clk 0:34:08]} Bf6 {[%clk 1:01:35]} 29. Rc2 
{[%clk 0:31:39]} Nd4 30. Nxd4 {[%clk 0:31:08]} Bxd4+ {[%clk 0:57:25]} 31. Kh1 
{[%clk 0:30:52]} Qb3 {[%clk 0:56:34]} 32. Rdd2 {[%clk 0:26:42]} Qxf3 
{[%clk 0:55:05]} 33. Nxf3 {[%clk 0:25:57]} Be3 {[%clk 0:54:50]} 34. Rd1 
{[%clk 0:25:11]} Bxf4 {[%clk 0:54:31]} 35. Ra1 {[%clk 0:24:26]} Bd3 
{[%clk 0:53:59]} 36. Rc3 {[%clk 0:23:14]} Be4 {[%clk 0:53:48]} 37. Rc4 
{[%clk 0:20:19]} Rxb2 {[%clk 0:51:10]} 38. Ne1 {[%clk 0:17:12]} Bxg2+ 
{[%clk 0:50:04]} 39. Nxg2 {[%clk 0:17:04]} Be5 {[%clk 0:50:00]} 40. Rd1 
{[%clk 0:15:00]} Rb3 {[%clk 0:49:50]} 41. Nf4 {[%clk 0:13:52]} Bxf4 
{[%clk 0:47:33]} 42. Rxf4 {[%clk 0:13:45]} Rxh3+ {[%clk 0:47:28]} 43. Kg2 
{[%clk 0:13:38]} Rb3 {[%clk 0:47:15]} 44. Ra4 {[%clk 0:13:11]} h5 
{[%clk 0:46:53]} 45. Ra6 {[%clk 0:13:01]} c4 {[%clk 0:45:55]} 46. Rxd6 
{[%clk 0:11:57]} Ra8 {[%clk 0:42:24]} 47. e7 {[%clk 0:09:48]} Kf7 
{[%clk 0:42:14]} 48. Re1 {[%clk 0:09:21]} Re8 {[%clk 0:41:57]} 49. Rde6 
{[%clk 0:08:23]} Rd3 {[%clk 0:41:10]} 50. d6 {[%clk 0:07:20]} c3 
{[%clk 0:40:46]} 51. R1e3 {[%clk 0:06:53]} Rd2+ {[%clk 0:40:14]} 52. Re2 
{[%clk 0:06:49]} Rd3 {[%clk 0:39:32]} 53. R2e3 {[%clk 0:06:33]} c2 
{[%clk 0:38:45]} 54. Rxd3 {[%clk 0:04:55]} c1=Q {[%clk 0:38:37]} 55. Ree3 
{[%clk 0:04:04]} Ra8 {[%clk 0:36:31]} 56. Re2 {[%clk 0:03:00]} Ra1 
{[%clk 0:35:39]} 57. e8=Q+ Kg7 58. Re7+ {[%clk 0:01:38]} Kh6 {[%clk 0:35:33]} 
59. Qh8+ {[%clk 0:00:59]} Kg5 60. Rg3+ Kh4 {[%clk 0:34:35]} 61. Rh3+ Kg4 
{[%clk 0:34:28]} 62. Rg3+ Kh4 {[%clk 0:33:52]} 63. Rh3+ Kg4 {[%clk 0:33:48]} 64. 
Rg3+ Kh4 65. Rh3+ Kg4 66. Rg3+ Kh4 67. Rh3+ Kg4 68. Rg3+ Kh4 69. Rh3+ Kg5 70. 
Rg3+ Kh4 71. Rh3+ Kg4 72. Rg3+ Kh4 73. Rh3+ Kg5 74. Rg3+ Kf4 75. Rh3 Kg5 76. 
Rg3+ Kh4 77. Qf6+ g5 78. Qd4+ f4 79. Rh3+ Kg4 80. Qh8 0-1

[Event "Malawi Championship (W)"]
[Site "followchess.com"]
[Date "2022.04.16"]
[Round "5"]
[White "Msukwa, Tupokiwe"]
[Black "Mpinganjira, Ellen"]
[Result "0-1"]
[WhiteElo "1371"]
[BlackElo "1360"]
[ECO "A43"]
[WhiteFed "MAW"]
[BlackFed "MAW"]
[FCGameId "654789252"]
[WhiteFideId "20500459"]
[BlackFideId "16400100"]
[TimeControl "5400+00"]

1. d4 {[%clk 1:29:53]} c5 {[%clk 1:29:46]} 2. e3 {[%clk 1:29:24]} d6 
{[%clk 1:29:25]} 3. c4 {[%clk 1:29:11]} Nf6 {[%clk 1:28:19]} 4. dxc5 
{[%clk 1:25:52]} Qa5+ {[%clk 1:28:02]} 5. Nc3 {[%clk 1:24:50]} Qxc5 
{[%clk 1:27:56]} 6. Be2 {[%clk 1:23:45]} e6 {[%clk 1:25:50]} 7. Nf3 
{[%clk 1:17:32]} Be7 {[%clk 1:24:45]} 8. O-O {[%clk 1:17:13]} O-O 
{[%clk 1:24:20]} 9. Qc2 {[%clk 1:16:19]} g6 {[%clk 1:21:36]} 10. b3 
{[%clk 1:14:31]} Nbd7 {[%clk 1:18:35]} 11. Bb2 {[%clk 1:13:42]} Rb8 
{[%clk 1:17:20]} 12. Rfd1 {[%clk 1:05:47]} a6 {[%clk 1:13:36]} 13. Qc1 
{[%clk 1:03:00]} Qc7 {[%clk 1:11:23]} 14. Ng5 {[%clk 1:00:16]} Ne8 
{[%clk 1:09:12]} 15. Nge4 {[%clk 0:59:21]} b6 {[%clk 1:06:23]} 16. Bf3 
{[%clk 0:50:57]} Bb7 {[%clk 1:04:21]} 17. Nd2 {[%clk 0:48:17]} Ne5 
{[%clk 1:01:43]} 18. Bxb7 Qxb7 {[%clk 1:01:03]} 19. Nde4 Nd7 {[%clk 0:56:00]} 
20. Qc2 {[%clk 0:41:50]} Nc5 {[%clk 0:52:04]} 21. Rd2 {[%clk 0:40:53]} f5 
{[%clk 0:49:57]} 22. Ng3 {[%clk 0:38:24]} Bf6 {[%clk 0:45:22]} 23. Rad1 
{[%clk 0:36:04]} Rd8 {[%clk 0:43:40]} 24. b4 {[%clk 0:34:39]} Nd7 
{[%clk 0:42:35]} 25. Nge2 {[%clk 0:34:02]} Rf7 {[%clk 0:40:00]} 26. Nd4 
{[%clk 0:33:06]} Re7 {[%clk 0:32:57]} 27. b5 {[%clk 0:32:32]} Bxd4 
{[%clk 0:32:24]} 28. Rxd4 {[%clk 0:30:07]} a5 {[%clk 0:31:44]} 29. Qe2 
{[%clk 0:24:17]} Qc7 {[%clk 0:29:33]} 30. f3 {[%clk 0:21:59]} Ndf6 
{[%clk 0:27:22]} 31. R4d2 {[%clk 0:19:55]} Red7 {[%clk 0:25:24]} 32. e4 
{[%clk 0:18:00]} f4 {[%clk 0:20:34]} 33. Na4 {[%clk 0:12:26]} e5 
{[%clk 0:19:35]} 34. Nc3 {[%clk 0:10:44]} Qc5+ 35. Kh1 {[%clk 0:09:45]} Qc7 
{[%clk 0:17:33]} 36. Rc2 {[%clk 0:08:09]} Ng7 {[%clk 0:17:19]} 37. Nd5 
{[%clk 0:07:30]} Nxd5 {[%clk 0:16:38]} 38. Rxd5 {[%clk 0:06:47]} Ne6 
{[%clk 0:16:22]} 39. Qd2 {[%clk 0:05:43]} Qb7 {[%clk 0:16:01]} 40. Rc1 
{[%clk 0:05:12]} Kf8 {[%clk 0:15:00]} 41. Rd1 {[%clk 0:04:53]} Ke7 
{[%clk 0:14:32]} 42. Rd3 {[%clk 0:04:33]} Nc5 {[%clk 0:13:45]} 43. Rc3 
{[%clk 0:04:07]} Qc7 {[%clk 0:12:54]} 44. Qd5 {[%clk 0:03:41]} 0-1